{"text_format":"3","workbook":"xlsx","n_sheets":2,"sheets":["Popis za nastavnika"," Podaci popisa"],"not_rendered":{"defined_names":6},"read":"whole","date_system":"1900"}

{"sheet":"Popis za nastavnika","index":0,"n_rows":10,"n_cols":10,"rows_kept":10,"merged":[[0,1,0,2],[0,4,0,8],[2,9,6,9]]}
[null,"Popis za nastavnika",null,"Podaci popisa","Legenda boja za status nalazi se u ovoj ćeliji: \"Nije započeto\" normalnog je stila, boja za \"U tijeku\": R=91 G=133 B=49, boja za \"Rok je danas\": R=118 G=88 B=0, boja za \"Na čekanju\": R=109 G=66 B=111, \"Dovršeno\" je precrtano, boja za \"Otkazano\": R=191 G=191 B=191, a boja za \"Prekoračen rok\": R=191 G=33 B=28."]
[null,"STAVKA","KATEGORIJA","DATUM POČETKA","KRAJNJI ROK","BROJ PREOSTALIH DANA","STATUS","BILJEŠKE"]
[null,"Čišćenje ladica","Kabinet",{"$f":"DATE(YEAR(TODAY()),MONTH(TODAY())-1,6)","v":"2018-04-06"},{"$f":"DATE(YEAR(TODAY()),MONTH(TODAY())-1,16)","v":"2018-04-16"},{"$f":"IFERROR(IF(COUNT(Popis[[#This Row],[DATUM POČETKA]]:Popis[[#This Row],[KRAJNJI ROK]])<>2,\"\",IF(OR(Popis[[#This Row],[STATUS]]=\"Dovršeno\",Popis[[#This Row],[STATUS]]=\"Otkazano\",Popis[[#This Row],[STATUS]]=\"Na čekanju\"),\"\",Popis[[#This Row],[KRAJNJI ROK]]-TODAY())),\"\")","v":""},"Dovršeno",null,null,"U ovoj se ćeliji nalazi rezač statusa. Da biste filtrirali popis po statusu, odaberite neki status u rezaču. Pritisnite i držite tipku CTRL da biste odabrali veći broj mogućnosti."]
[null,"Naručivanje naljepnica","Potrošni materijal",{"$f":"DATE(YEAR(TODAY()),MONTH(TODAY())-1,11)","v":"2018-04-11"},{"$f":"DATE(YEAR(TODAY()),MONTH(TODAY())-1,21)","v":"2018-04-21"},{"$f":"IFERROR(IF(COUNT(Popis[[#This Row],[DATUM POČETKA]]:Popis[[#This Row],[KRAJNJI ROK]])<>2,\"\",IF(OR(Popis[[#This Row],[STATUS]]=\"Dovršeno\",Popis[[#This Row],[STATUS]]=\"Otkazano\",Popis[[#This Row],[STATUS]]=\"Na čekanju\"),\"\",Popis[[#This Row],[KRAJNJI ROK]]-TODAY())),\"\")","v":""},"Dovršeno"]
[null,"Pranje i poliranje podova","Drugo",{"$f":"DATE(YEAR(TODAY()),MONTH(TODAY()-1),DAY(TODAY())-25)","v":"2018-04-16"},{"$f":"DATE(YEAR(TODAY()),MONTH(TODAY())-1,26)","v":"2018-04-26"},{"$f":"IFERROR(IF(COUNT(Popis[[#This Row],[DATUM POČETKA]]:Popis[[#This Row],[KRAJNJI ROK]])<>2,\"\",IF(OR(Popis[[#This Row],[STATUS]]=\"Dovršeno\",Popis[[#This Row],[STATUS]]=\"Otkazano\",Popis[[#This Row],[STATUS]]=\"Na čekanju\"),\"\",Popis[[#This Row],[KRAJNJI ROK]]-TODAY())),\"\")","v":""},"Dovršeno"]
[null,"Izrada oznaka s imenima","Potrošni materijal",{"$f":"DATE(YEAR(TODAY()),MONTH(TODAY())-1,21)","v":"2018-04-21"},{"$f":"DATE(YEAR(TODAY()),MONTH(TODAY())-1,1)","v":"2018-04-01"},{"$f":"IFERROR(IF(COUNT(Popis[[#This Row],[DATUM POČETKA]]:Popis[[#This Row],[KRAJNJI ROK]])<>2,\"\",IF(OR(Popis[[#This Row],[STATUS]]=\"Dovršeno\",Popis[[#This Row],[STATUS]]=\"Otkazano\",Popis[[#This Row],[STATUS]]=\"Na čekanju\"),\"\",Popis[[#This Row],[KRAJNJI ROK]]-TODAY())),\"\")","v":""},"Na čekanju"]
[null,"Ocjenjivanje tromjesečnih pisanih ispita","Ocjenjivanje",{"$f":"DATE(YEAR(TODAY()),MONTH(TODAY())-1,26)","v":"2018-04-26"},{"$f":"TODAY()-5","v":"2018-05-06"},{"$f":"IFERROR(IF(COUNT(Popis[[#This Row],[DATUM POČETKA]]:Popis[[#This Row],[KRAJNJI ROK]])<>2,\"\",IF(OR(Popis[[#This Row],[STATUS]]=\"Dovršeno\",Popis[[#This Row],[STATUS]]=\"Otkazano\",Popis[[#This Row],[STATUS]]=\"Na čekanju\"),\"\",Popis[[#This Row],[KRAJNJI ROK]]-TODAY())),\"\")","v":-5},"Prekoračen rok"]
[null,"Slanje podsjetnika za ispričnice","Telefonski pozivi",{"$f":"DATE(YEAR(TODAY()),MONTH(TODAY()),1)","v":"2018-05-01"},{"$f":"TODAY()","v":"2018-05-11"},{"$f":"IFERROR(IF(COUNT(Popis[[#This Row],[DATUM POČETKA]]:Popis[[#This Row],[KRAJNJI ROK]])<>2,\"\",IF(OR(Popis[[#This Row],[STATUS]]=\"Dovršeno\",Popis[[#This Row],[STATUS]]=\"Otkazano\",Popis[[#This Row],[STATUS]]=\"Na čekanju\"),\"\",Popis[[#This Row],[KRAJNJI ROK]]-TODAY())),\"\")","v":""},"Otkazano"]
[null,"Usmeno ocjenjivanje","Kabinet",{"$f":"DATE(YEAR(TODAY()),MONTH(TODAY()),7)","v":"2018-05-07"},{"$f":"DATE(YEAR(TODAY()),MONTH(TODAY()),17)","v":"2018-05-17"},{"$f":"IFERROR(IF(COUNT(Popis[[#This Row],[DATUM POČETKA]]:Popis[[#This Row],[KRAJNJI ROK]])<>2,\"\",IF(OR(Popis[[#This Row],[STATUS]]=\"Dovršeno\",Popis[[#This Row],[STATUS]]=\"Otkazano\",Popis[[#This Row],[STATUS]]=\"Na čekanju\"),\"\",Popis[[#This Row],[KRAJNJI ROK]]-TODAY())),\"\")","v":6},"U tijeku"]
[null,"Šiljenje olovaka","Potrošni materijal",{"$f":"DATE(YEAR(TODAY()),MONTH(TODAY()),11)","v":"2018-05-11"},{"$f":"DATE(YEAR(TODAY()),MONTH(TODAY()),10)","v":"2018-05-10"},{"$f":"IFERROR(IF(COUNT(Popis[[#This Row],[DATUM POČETKA]]:Popis[[#This Row],[KRAJNJI ROK]])<>2,\"\",IF(OR(Popis[[#This Row],[STATUS]]=\"Dovršeno\",Popis[[#This Row],[STATUS]]=\"Otkazano\",Popis[[#This Row],[STATUS]]=\"Na čekanju\"),\"\",Popis[[#This Row],[KRAJNJI ROK]]-TODAY())),\"\")","v":-1},"U tijeku"]

{"sheet":" Podaci popisa","index":1,"n_rows":13,"n_cols":3,"rows_kept":13}
[null,"Podaci popisa","Popis za nastavnika"]
[null,"Kategorija"]
[null,"Kabinet"]
[null,"Potrošni materijal"]
[null,"Treba kupiti"]
[null,"Telefonski pozivi"]
[null,"Nove ideje"]
[null,"Ocjenjivanje"]
[null,"Tim"]
[null,"Intervencije"]
[null,"Računalo"]
[null,"Osobno"]
[null,"Drugo"]